fUSD/lending_fUSD_20240814
["ID","MTS","AMOUNT","RATE_DAILY","PERIOD"]
[334855667,1723609870508,-896.11,0.00015068,2]
[334855668,1723609870517,-681.82,0.00015068,2]
[334855669,1723609870527,-1454.11,0.00015068,2]
[334855670,1723609870537,-1104.05,0.00015068,2]
[334855671,1723609870546,-2169.37,0.00015068,2]
[334855672,1723609870556,-500.0,0.00015068,2]
[334855673,1723609870565,-500.0,0.00015068,2]
[334855674,1723609870576,-500.0,0.00015068,2]
[334855675,1723609870586,-500.0,0.00015068,2]
[334855676,1723609870595,-500.0,0.00015068,2]
[334855677,1723609870604,-1282.27,0.00015068,2]
[334855678,1723609870616,-6536.97,0.00015068,2]
[334855679,1723609870625,-500.0,0.00015068,2]
[334855680,1723609870634,-2669.17,0.00015068,2]
[334855681,1723609870644,-500.0,0.00015068,2]
[334855682,1723609870654,-500.0,0.00015068,2]
[334855683,1723609870663,-1328.52,0.00015068,2]
[334855684,1723609870673,-9772.12,0.00015068,2]
[334855685,1723609870682,-3638.87,0.00015068,2]
[334855686,1723609870692,-1643.29,0.00015068,2]
[334855687,1723609870701,-500.0,0.00015068,2]
[334855688,1723609870710,-500.0,0.00015068,2]
[334855689,1723609870720,-756.9,0.00015068,2]
[334855690,1723609870729,-500.0,0.00015068,2]
[334855691,1723609870739,-510.29,0.00015068,2]
[334855692,1723609870748,-1412.99,0.00015068,2]
[334855693,1723609870758,-672.06,0.00015068,2]
[334855694,1723609870768,-500.0,0.00015068,2]
[334855695,1723609870778,-1317.22,0.00015068,2]
[334855696,1723609870787,-573.39,0.00015068,2]
[334855697,1723609870797,-500.0,0.00015068,2]
[334855698,1723609870806,-2594.57,0.00015068,2]
[334855699,1723609870816,-1170.34,0.00015068,2]
[334855700,1723609870825,-960.18,0.00015068,2]
[334855701,1723609870835,-2279.45,0.00015068,2]
[334855702,1723609870844,-500.0,0.00015068,2]
[334855703,1723609870854,-1430.72,0.00015068,2]
[334855704,1723609870864,-699.32,0.00015068,2]
[334855705,1723609870874,-400.0,0.00015068,2]
[334855706,1723609870883,-500.0,0.00015068,2]
[334855707,1723609870893,-500.0,0.00015068,2]
[334855708,1723609870903,-2593.85,0.00015068,2]
[334855709,1723609870913,-709.11,0.00015068,2]
[334855710,1723609870923,-584.01,0.00015068,2]
[334855711,1723609870932,-2203.65,0.00015068,2]
[334855712,1723609870941,-500.0,0.00015068,2]
[334855713,1723609870951,-1289.07,0.00015068,2]
[334855714,1723609870961,-1545.87,0.00015068,2]
[334855715,1723609870971,-4744.17,0.00015068,2]
[334855716,1723609870981,-721.29,0.00015068,2]
[334855717,1723609870990,-693.69,0.00015068,2]
[334855718,1723609871004,-500.0,0.00015068,2]
[334855719,1723609871014,-500.0,0.00015068,2]
[334855720,1723609871023,-702.63,0.00015068,2]
[334855721,1723609871033,-500.0,0.00015068,2]
[334855722,1723609871045,-500.0,0.00015068,2]
[334855723,1723609871057,-1337.5,0.00015068,2]
[334855724,1723609871067,-2072.36,0.00015068,2]
[334855725,1723609871078,-1595.04,0.00015068,2]
[334855726,1723609871088,-500.0,0.00015068,2]
[334855727,1723609871098,-632.26,0.00015068,2]
[334855728,1723609871107,-500.0,0.00015068,2]
[334855729,1723609871116,-934.24,0.00015068,2]
[334855730,1723609871125,-1847.69,0.00015068,2]
[334855731,1723609871134,-500.0,0.00015068,2]
[334855732,1723609871144,-921.25,0.00015068,2]
[334855733,1723609871153,-606.48,0.00015068,2]
[334855734,1723609871162,-1284.98,0.00015068,2]
[334855735,1723609871172,-500.0,0.00015068,2]
[334855736,1723609871181,-500.0,0.00015068,2]
[334855737,1723609871191,-500.0,0.00015068,2]
[334855738,1723609871201,-6567.88,0.00015068,2]
[334855739,1723609871212,-794.79,0.00015068,2]
[334855740,1723609871221,-1821.67,0.00015068,2]
[334855741,1723609871231,-958.01,0.00015068,2]
[334855742,1723609871240,-1300.27,0.00015068,2]
[334855743,1723609871250,-1529.8,0.00015068,2]
[334855744,1723609871261,-500.0,0.00015068,2]
[334855745,1723609871271,-500.0,0.00015068,2]
[334855746,1723609871281,-7894.91,0.00015068,2]
[334855747,1723609871291,-962.46,0.00015068,2]
[334855748,1723609871300,-784.56,0.00015068,2]
[334855749,1723609871309,-2122.48,0.00015068,2]
[334855750,1723609871318,-500.0,0.00015068,2]
[334855751,1723609871327,-1436.52,0.00015068,2]
[334855752,1723609871337,-602.19,0.00015068,2]
[334855753,1723609871346,-500.0,0.00015068,2]
[334855754,1723609871356,-2443.79,0.00015068,2]
[334855755,1723609871365,-500.0,0.00015068,2]
[334855756,1723609871375,-1117.72,0.00015068,2]
[334855757,1723609871385,-1141.56,0.00015068,2]
[334855758,1723609871394,-1038.02,0.00015068,2]
[334855759,1723609871403,-500.0,0.00015068,2]
[334855760,1723609871415,-2826.18,0.00015068,2]
[334855761,1723609871425,-626.15,0.00015068,2]
[334855762,1723609871435,-1794.03,0.00015068,2]
[334855763,1723609871444,-1000.31,0.00015068,2]
[334855764,1723609871454,-789.7,0.00015068,2]
[334855765,1723609871463,-1287.7,0.00015068,2]
[334855766,1723609871472,-500.0,0.00015068,2]
[334855767,1723609871481,-500.0,0.00015068,2]
[334855768,1723609871491,-542.16,0.00015068,2]
[334855769,1723609871500,-824.39,0.00015068,2]
[334855770,1723609871509,-500.0,0.00015068,2]
[334855771,1723609871519,-500.0,0.00015068,2]
[334855772,1723609871530,-500.0,0.00015068,2]
[334855773,1723609871540,-500.0,0.00015068,2]
[334855774,1723609871549,-500.0,0.00015068,2]
[334855775,1723609871559,-1448.79,0.00015068,2]
[334855776,1723609871569,-500.0,0.00015068,2]
[334855777,1723609871580,-650.93,0.00015068,2]
[334855778,1723609871590,-1750.64,0.00015068,2]
[334855779,1723609871599,-1144.6,0.00015068,2]
[334855780,1723609871611,-500.0,0.00015068,2]
[334855781,1723609871622,-355.25152552,0.00015068,2]
[334855782,1723609871632,-500.0,0.00015068,2]
[334855783,1723609871642,-500.0,0.00015068,2]
[334855784,1723609871652,-12775.62,0.00015068,2]
[334855785,1723609871661,-1230.28,0.00015068,2]
[334855786,1723609871671,-3428.13,0.00015068,2]
[334855787,1723609871681,-500.0,0.00015068,2]
[334855788,1723609871690,-500.0,0.00015068,2]
[334855789,1723609871700,-1638.12,0.00015068,2]
[334855790,1723609871710,-500.0,0.00015068,2]
[334855791,1723609871719,-500.0,0.00015068,2]
[334855792,1723609871729,-500.0,0.00015068,2]
[334855793,1723609871738,-2040.24,0.00015068,2]
[334855794,1723609871748,-1515.13,0.00015068,2]
[334855795,1723609871759,-683.16,0.00015068,2]
[334855796,1723609871768,-1072.71,0.00015068,2]
[334855797,1723609871778,-3552.15,0.00015068,2]
[334855798,1723609871787,-500.0,0.00015068,2]
[334855799,1723609871797,-500.0,0.00015068,2]
[334855800,1723609871807,-1939.38,0.00015068,2]
[334855801,1723609871816,-567.28,0.00015068,2]
[334855802,1723609871826,-1452.68,0.00015068,2]
[334855803,1723609871836,-632.46138547,0.00015068,2]
[334855804,1723609871846,-500.0,0.00015068,2]
[334855805,1723609871855,-225.58723939,0.00015068,2]
[334855806,1723609871865,-1066.26,0.00015068,2]
[334855807,1723609871874,-500.0,0.00015068,2]
[334855808,1723609871884,-2040.77,0.00015068,2]
[334855809,1723609871893,-524.59,0.00015068,2]
[334855810,1723609871903,-610.73683377,0.00015068,2]
[334855811,1723609871913,-500.0,0.00015068,2]
[334855812,1723609871922,-751.22,0.00015068,2]
[334855813,1723609871931,-500.0,0.00015068,2]
[334855814,1723609871942,-500.0,0.00015068,2]
[334855815,1723609871951,-500.0,0.00015068,2]
[334855816,1723609871961,-1978.27,0.00015068,2]
[334855817,1723609871970,-1013.74,0.00015068,2]
[334855818,1723609871979,-500.0,0.00015068,2]
[334855819,1723609871989,-571.2614227,0.00015068,2]
[334855820,1723609872004,-3363.31,0.00015068,2]
[334855821,1723609872014,-547.18,0.00015068,2]
[334855822,1723609872025,-500.0,0.00015068,2]
[334855823,1723609872036,-500.0,0.00015068,2]
[334855824,1723609872047,-500.0,0.00015068,2]
[334855825,1723609872056,-3032.15,0.00015068,2]
[334855826,1723609872067,-8625.96,0.00015068,2]
[334855827,1723609872077,-1762.22,0.00015068,2]
[334855828,1723609872087,-500.0,0.00015068,2]
[334855829,1723609872096,-1353.62,0.00015068,2]
[334855830,1723609872105,-1289.65,0.00015068,2]
[334855831,1723609872359,-500.0,0.00015068,2]
[334855832,1723609872415,-893.73,0.00015068,2]
[334855833,1723609872425,-500.0,0.00015068,2]
[334855834,1723609872435,-500.0,0.00015068,2]
[334855835,1723609872444,-500.0,0.00015068,2]
[334855836,1723609872453,-2410.79,0.00015068,2]
[334855837,1723609872463,-500.0,0.00015068,2]
[334855838,1723609872473,-1137.78,0.00015068,2]
[334855839,1723609872482,-684.86,0.00015068,2]
[334855840,1723609872492,-504.95,0.00015068,2]
[334855841,1723609872501,-806.17,0.00015068,2]
[334855842,1723609872511,-3271.69,0.00015068,2]
[334855843,1723609872520,-859.31,0.00015068,2]
[334855844,1723609872530,-500.0,0.00015068,2]
[334855845,1723609872539,-500.0,0.00015068,2]
[334855846,1723609872549,-727.71,0.00015068,2]
[334855847,1723609872560,-500.0,0.00015068,2]
[334855848,1723609872571,-500.0,0.00015068,2]
[334855849,1723609872580,-500.0,0.00015068,2]
[334855850,1723609872590,-500.0,0.00015068,2]
[334855851,1723609872599,-528.47,0.00015068,2]
[334855852,1723609872611,-1104.85,0.00015068,2]
[334855853,1723609872623,-203.2,0.00015114,2]
[334855854,1723609872634,-7198.21,0.00015331,2]
[334855855,1723609872643,-1410.06,0.00015331,2]
[334855856,1723609872654,-625.36,0.00015331,2]
[334855857,1723609872664,-920.35,0.00015331,2]
[334855858,1723609872674,-1055.09,0.00015331,2]
[334855859,1723609872684,-1754.45,0.00015331,2]
[334855860,1723609872693,-4482.96,0.00015331,2]
[334855861,1723609872703,-500.0,0.00015331,2]
[334855862,1723609872713,-1145.05,0.00015331,2]
[334855863,1723609872722,-500.0,0.00015331,2]
[334855864,1723609872733,-1316.41,0.00015331,2]
[334855865,1723609872743,-1055.66,0.00015331,2]
[334855866,1723609872752,-500.0,0.00015331,2]
[334855867,1723609872763,-500.0,0.00015331,2]
[334855868,1723609872772,-4416.77,0.00015341,2]
[334855869,1723609872781,-2689.76,0.00015341,2]
[334855870,1723609872791,-2554.53,0.00015341,2]
[334855871,1723609872801,-2895.53,0.00015341,2]
[334855872,1723609872810,-1141.74,0.00015341,2]
[334855873,1723609872820,-521.36,0.00015341,2]
[334855874,1723609872830,-542.34,0.00015341,2]
[334855875,1723609872839,-736.43331406,0.00015341,2]
[334855876,1723609874429,-2117.94879541,0.00015341,2]
[334855877,1723609874441,-590.0,0.00015341,2]
[334855878,1723609874525,-507.53028692,0.00015341,2]
[334855879,1723609874536,-357.69482547,0.00015341,2]
[334855880,1723609874548,-21642.8178528,0.00015341,2]
[334855881,1723609874584,928.92,0.00013972,2]
[334855882,1723609874597,-1257.99548884,0.00015341,2]
[334855883,1723609874609,-4265.75,0.00015341,2]
[334855884,1723609874620,-27171.4794365,0.00015341,2]
[334855885,1723609874630,-7327.95,0.00015341,2]
[334855886,1723609874639,-253.750419,0.00015341,2]
[334855887,1723609874649,-167.401742,0.00015341,2]
[334855888,1723609874658,-3009.04,0.00015341,2]
[334855889,1723609874669,-156.685771,0.00015341,2]
[334855890,1723609874679,-2253.79,0.00015341,2]
[334855891,1723609874689,-3871.06,0.00015341,2]
[334855892,1723609874699,-500.0,0.00015341,2]
[334855893,1723609874709,-500.0,0.00015341,2]
[334855894,1723609874718,-1830.76,0.00015341,2]
[334855895,1723609874728,-857.71,0.00015341,2]
[334855896,1723609874738,-500.0,0.00015341,2]
[334855897,1723609874747,-2267.76,0.00015341,2]
[334855898,1723609874757,-2386.75,0.00015341,2]
[334855899,1723609874768,-2013.35,0.00015341,2]
[334855900,1723609874777,-500.0,0.00015341,2]
[334855901,1723609874787,-949.37,0.00015341,2]
[334855902,1723609874797,-500.0,0.00015341,2]
[334855903,1723609874807,-1349.62,0.00015341,2]
[334855904,1723609874817,-500.0,0.00015341,2]
[334855905,1723609874826,-3827.33,0.00015341,2]
[334855906,1723609874836,-2013.19,0.00015341,2]
[334855907,1723609874845,-1443.5,0.00015341,2]
[334855908,1723609874855,-949.47,0.00015341,2]
[334855909,1723609874865,-1517.58,0.00015341,2]
[334855910,1723609874874,-3668.14,0.00015341,2]
[334855911,1723609874884,-2773.87,0.00015341,2]
[334855912,1723609874894,-500.0,0.00015341,2]
[334855913,1723609874903,-687.08,0.00015341,2]
[334855914,1723609874912,-2141.81,0.00015341,2]
[334855915,1723609874923,-1091.39,0.00015341,2]
[334855916,1723609874932,-3333.3,0.00015341,2]
[334855917,1723609874942,-1504.35,0.00015341,2]
[334855918,1723609874951,-1571.19,0.00015341,2]
[334855919,1723609874961,-1686.8,0.00015341,2]
[334855920,1723609874970,-2339.03,0.00015341,2]
[334855921,1723609874979,-2952.44,0.00015341,2]
[334855922,1723609874988,-2491.82,0.00015341,2]
[334855923,1723609875005,-6411.45,0.00015341,2]
[334855924,1723609875014,-1105.99,0.00015342,2]
[334855925,1723609875023,-363.67682448,0.00015342,2]
[334855926,1723609875032,-500.0,0.00015342,2]
[334855927,1723609875042,-500.0,0.00015342,2]
[334855928,1723609875051,-622.25847695,0.00015342,2]
[334855929,1723609875063,-799.62,0.00015342,2]
[334855930,1723609875072,-500.0,0.00015342,2]
[334855931,1723609875082,-500.0,0.00015342,2]
[334855932,1723609875092,-500.0,0.00015342,2]
[334855933,1723609875101,-500.0,0.00015342,2]
[334855934,1723609875110,-905.52,0.00015342,2]
[334855935,1723609875119,-500.0,0.00015342,2]
[334855936,1723609875128,-500.0,0.00015342,2]
[334855937,1723609875137,-500.0,0.00015342,2]
[334855938,1723609875146,-877.68,0.00015342,2]
[334855939,1723609875155,-1597.53,0.00015342,2]
[334855940,1723609875164,-500.0,0.00015342,2]
[334855941,1723609875174,-399.72365376,0.00015342,2]
[334855942,1723609875183,-500.0,0.00015342,2]
[334855943,1723609875192,-1514.3,0.00015342,2]
[334855944,1723609875202,-500.0,0.00015342,2]
[334855945,1723609875211,-500.0,0.00015342,2]
[334855946,1723609875220,-500.0,0.00015342,2]
[334855947,1723609875229,-1130.83,0.00015342,2]
[334855948,1723609875238,-500.0,0.00015342,2]
[334855949,1723609875247,-500.0,0.00015342,2]
[334855950,1723609875257,-500.0,0.00015342,2]
[334855951,1723609875266,-500.0,0.00015342,2]
[334855952,1723609875276,-500.0,0.00015342,2]
[334855953,1723609875285,-500.0,0.00015342,2]
[334855954,1723609875295,-500.0,0.00015342,2]
[334855955,1723609875305,-500.0,0.00015342,2]
[334855956,1723609875316,-512.96,0.00015342,2]
[334855957,1723609875326,-500.0,0.00015342,2]
[334855958,1723609875336,-500.0,0.00015342,2]
[334855959,1723609875345,-500.0,0.00015342,2]
[334855960,1723609875355,-500.0,0.00015342,2]
[334855961,1723609875364,-825.54,0.00015342,2]
[334855962,1723609875374,-500.0,0.00015342,2]
[334855963,1723609875384,-500.0,0.00015342,2]
[334855964,1723609875393,-500.0,0.00015342,2]
[334855965,1723609875403,-688.2,0.00015342,2]
[334855966,1723609875412,-500.0,0.00015342,2]
[334855967,1723609875424,-318.4058301,0.00015342,2]
[334855968,1723609875433,-508.74,0.00015342,2]
[334855969,1723609875442,-966.26,0.00015342,2]
[334855970,1723609875451,-500.0,0.00015342,2]
[334855971,1723609875461,-500.0,0.00015342,2]
[334855972,1723609875470,-882.14,0.00015342,2]
[334855973,1723609875479,-500.0,0.00015342,2]
[334855974,1723609875489,-500.0,0.00015342,2]
[334855975,1723609875499,-500.0,0.00015342,2]
[334855976,1723609875508,-500.0,0.00015342,2]
[334855977,1723609875518,-500.0,0.00015342,2]
[334855978,1723609875527,-500.0,0.00015342,2]
[334855979,1723609875537,-500.0,0.00015342,2]
[334855980,1723609875547,-521.92,0.00015342,2]
[334855981,1723609875557,-500.0,0.00015342,2]
[334855982,1723609875567,-703.01,0.00015342,2]
[334855983,1723609875577,-500.0,0.00015342,2]
[334855984,1723609875589,-1055.94,0.00015342,2]
[334855985,1723609875598,-500.0,0.00015342,2]
[334855986,1723609875607,-500.0,0.00015342,2]
[334855987,1723609875616,-500.0,0.00015342,2]
[334855988,1723609875626,-500.0,0.00015342,2]
[334855989,1723609875636,-646.22,0.00015342,2]
[334855990,1723609875645,-2252.71,0.00015342,2]
[334855991,1723609875657,-500.0,0.00015342,2]
[334855992,1723609875666,-880.31,0.00015342,2]
[334855993,1723609875675,-534.86287537,0.00015342,2]
[334855994,1723609875685,-1294.46,0.00015342,2]
[334855995,1723609875694,-500.0,0.00015342,2]
[334855996,1723609875703,-500.0,0.00015342,2]
[334855997,1723609875712,-951.77,0.00015342,2]
[334855998,1723609875722,-500.0,0.00015342,2]
[334855999,1723609875731,-500.0,0.00015342,2]
[334856000,1723609875741,-501.2,0.00015342,2]
[334856001,1723609875750,-2007.46,0.00015342,2]
[334856002,1723609875759,-1637.64,0.00015342,2]
[334856003,1723609875769,-500.0,0.00015342,2]
[334856004,1723609875778,-500.0,0.00015342,2]
[334856005,1723609875787,-500.0,0.00015342,2]
[334856006,1723609875797,-500.0,0.00015342,2]
[334856007,1723609875807,-532.67,0.00015342,2]
[334856008,1723609875817,-500.0,0.00015342,2]
[334856009,1723609875826,-157.54841772,0.00015342,2]
[334856010,1723609875836,-500.0,0.00015342,2]
[334856011,1723609875845,-1243.67,0.00015342,2]
[334856012,1723609875854,-1029.48,0.00015342,2]
[334856013,1723609875864,-500.0,0.00015342,2]
[334856014,1723609875874,-500.0,0.00015342,2]
[334856015,1723609875883,-838.15,0.00015342,2]
[334856016,1723609875893,-632.46,0.00015342,2]
[334856017,1723609875902,-562.14,0.00015342,2]
[334856018,1723609875912,-735.43,0.00015342,2]
[334856019,1723609875922,-500.0,0.00015342,2]
[334856020,1723609875931,-924.42,0.00015342,2]
[334856021,1723609875941,-500.0,0.00015342,2]
[334856022,1723609875951,-679.38,0.00015342,2]
[334856023,1723609875960,-2016.25,0.00015342,2]
[334856024,1723609875969,-500.0,0.00015342,2]
[334856025,1723609875979,-996.84,0.00015342,2]
[334856026,1723609875990,-500.0,0.00015342,2]
[334856027,1723609876003,-2074.06,0.00015342,2]
[334856028,1723609876013,-500.0,0.00015342,2]
[334856029,1723609876023,-500.0,0.00015342,2]
[334856030,1723609876032,-500.0,0.00015342,2]
[334856031,1723609876043,-1744.71,0.00015342,2]
[334856032,1723609876052,-1346.19,0.00015342,2]
[334856033,1723609876061,-993.13,0.00015342,2]
[334856034,1723609876071,-571.62,0.00015342,2]
[334856035,1723609876082,-1990.94,0.00015342,2]
[334856036,1723609876091,-1138.63,0.00015342,2]
[334856037,1723609876100,-500.0,0.00015342,2]
[334856038,1723609876109,-500.0,0.00015342,2]
[334856039,1723609876119,-500.0,0.00015342,2]
[334856040,1723609876128,-500.0,0.00015342,2]
[334856041,1723609876137,-1184.63,0.00015342,2]
[334856042,1723609876146,-570.91,0.00015342,2]
[334856043,1723609876156,-2160.46,0.00015342,2]
[334856044,1723609876165,-989.17,0.00015342,2]
[334856045,1723609876174,-1186.27,0.00015342,2]
[334856046,1723609876183,-500.0,0.00015342,2]
[334856047,1723609876193,-500.0,0.00015342,2]
[334856048,1723609876202,-500.0,0.00015342,2]
[334856049,1723609876210,-1867.57,0.00015342,2]
[334856050,1723609876220,-1273.12,0.00015342,2]
[334856051,1723609876229,-500.0,0.00015342,2]
[334856052,1723609876238,-787.73,0.00015342,2]
[334856053,1723609876247,-500.0,0.00015342,2]
[334856054,1723609876256,-840.85,0.00015342,2]
[334856055,1723609876265,-500.0,0.00015342,2]
[334856056,1723609876274,-500.0,0.00015342,2]
[334856057,1723609876283,-500.0,0.00015342,2]
[334856058,1723609876292,-816.91,0.00015342,2]
[334856059,1723609876301,-1315.34,0.00015342,2]
[334856060,1723609876311,-500.0,0.00015342,2]
[334856061,1723609876320,-742.37,0.00015342,2]
[334856062,1723609876329,-2161.83,0.00015342,2]
[334856063,1723609876338,-500.0,0.00015342,2]
[334856064,1723609876348,-500.0,0.00015342,2]
[334856065,1723609876357,-682.41,0.00015342,2]
[334856066,1723609876366,-1020.28,0.00015342,2]
[334856067,1723609876375,-823.18,0.00015342,2]
[334856068,1723609876384,-697.5,0.00015342,2]
[334856069,1723609876394,-500.0,0.00015342,2]
[334856070,1723609876403,-500.0,0.00015342,2]
[334856071,1723609876412,-529.04,0.00015342,2]
[334856072,1723609876423,-500.0,0.00015342,2]
[334856073,1723609876432,-500.0,0.00015342,2]
[334856074,1723609876442,-1026.61,0.00015342,2]
[334856075,1723609876452,-1426.92,0.00015342,2]
[334856076,1723609876461,-934.99,0.00015342,2]
[334856077,1723609876470,-500.0,0.00015342,2]
[334856078,1723609876480,-1110.01,0.00015342,2]
[334856079,1723609876489,-500.0,0.00015342,2]
[334856080,1723609876498,-1062.19,0.00015342,2]
[334856081,1723609876507,-1885.75,0.00015342,2]
[334856082,1723609876516,-1081.43,0.00015342,2]
[334856083,1723609876526,-1417.64,0.00015342,2]
[334856084,1723609876535,-500.0,0.00015342,2]
[334856085,1723609876544,-500.0,0.00015342,2]
[334856086,1723609876554,-500.0,0.00015342,2]
[334856087,1723609876564,-687.0,0.00015342,2]
[334856088,1723609876573,-500.0,0.00015342,2]
[334856089,1723609876583,-779.74,0.00015342,2]
[334856090,1723609876592,-681.03,0.00015342,2]
[334856091,1723609876602,-500.0,0.00015342,2]
[334856092,1723609876611,-500.0,0.00015342,2]
[334856093,1723609876621,-533.04,0.00015342,2]
[334856094,1723609876630,-500.0,0.00015342,2]
[334856095,1723609876639,-648.57,0.00015342,2]
[334856096,1723609876649,-500.0,0.00015342,2]
[334856097,1723609876658,-859.4,0.00015342,2]
[334856098,1723609876669,-500.0,0.00015342,2]
[334856099,1723609876679,-573.93,0.00015342,2]
[334856100,1723609876689,-500.0,0.00015342,2]
[334856101,1723609876698,-575.8,0.00015342,2]
[334856102,1723609876707,-500.0,0.00015342,2]
[334856103,1723609876717,-1073.74,0.00015342,2]
[334856104,1723609876727,-2787.92,0.00015342,2]
[334856105,1723609876736,-784.46,0.00015342,2]
[334856106,1723609876746,-548.88,0.00015342,2]
[334856107,1723609876755,-500.0,0.00015342,2]
[334856108,1723609876764,-813.12,0.00015342,2]
[334856109,1723609876774,-1169.53,0.00015342,2]
[334856110,1723609876784,-500.0,0.00015342,2]
[334856111,1723609876794,-500.0,0.00015342,2]
[334856112,1723609876803,-500.0,0.00015342,2]
[334856113,1723609876813,-550.41,0.00015342,2]
[334856114,1723609876822,-874.05,0.00015342,2]
[334856115,1723609876832,-500.0,0.00015342,2]
[334856116,1723609876841,-662.44,0.00015342,2]
[334856117,1723609876850,-514.89,0.00015342,2]
[334856118,1723609876859,-897.12,0.00015342,2]
[334856119,1723609876868,-500.0,0.00015342,2]
[334856120,1723609876877,-722.1,0.00015342,2]
[334856121,1723609876887,-1677.46,0.00015342,2]
[334856122,1723609876896,-827.12,0.00015342,2]
[334856123,1723609876906,-500.0,0.00015342,2]
[334856124,1723609876915,-500.0,0.00015342,2]
[334856125,1723609876931,-747.02,0.00015342,2]
[334856126,1723609876941,-500.0,0.00015342,2]
[334856127,1723609876950,-979.9,0.00015342,2]
[334856128,1723609876960,-500.0,0.00015342,2]
[334856129,1723609876969,-1337.17,0.00015342,2]
[334856130,1723609876978,-2317.78,0.00015342,2]
[334856131,1723609876988,-1767.63,0.00015342,2]
[334856132,1723609876998,-768.37,0.00015342,2]
[334856133,1723609877011,-500.0,0.00015342,2]
[334856134,1723609877020,-1308.24,0.00015342,2]
[334856135,1723609877029,-665.33,0.00015342,2]
[334856136,1723609877039,-1152.45,0.00015342,2]
[334856137,1723609877050,-500.0,0.00015342,2]
[334856138,1723609877060,-500.0,0.00015342,2]
[334856139,1723609877069,-500.0,0.00015342,2]
[334856140,1723609877080,-500.0,0.00015342,2]
[334856141,1723609877090,-573.78,0.00015342,2]
[334856142,1723609877099,-561.17,0.00015342,2]
[334856143,1723609877108,-543.31,0.00015342,2]
[334856144,1723609877118,-727.32,0.00015342,2]
[334856145,1723609877127,-1911.45,0.00015342,2]
[334856146,1723609877136,-793.97,0.00015342,2]
[334856147,1723609877145,-500.0,0.00015342,2]
[334856148,1723609877154,-500.0,0.00015342,2]
[334856149,1723609877164,-500.0,0.00015342,2]
[334856150,1723609877177,-574.12,0.00015342,2]
[334856151,1723609877186,-500.0,0.00015342,2]
[334856152,1723609877195,-1032.04,0.00015342,2]
[334856153,1723609877204,-831.96,0.00015342,2]
[334856154,1723609877214,-500.0,0.00015342,2]
[334856155,1723609877223,-788.71,0.00015342,2]
[334856156,1723609877232,-500.0,0.00015342,2]
[334856157,1723609877241,-1203.92,0.00015342,2]
[334856158,1723609877251,-1101.68,0.00015342,2]
[334856159,1723609877260,-548.96,0.00015342,2]
[334856160,1723609877271,-500.0,0.00015342,2]
[334856161,1723609877280,-1753.38,0.00015342,2]
[334856162,1723609877290,-1248.17,0.00015342,2]
[334856163,1723609877301,-1358.16,0.00015342,2]
[334856164,1723609877310,-524.48,0.00015342,2]
[334856165,1723609877320,-757.67,0.00015342,2]
[334856166,1723609877329,-500.0,0.00015342,2]